bitfinex/quotes_BTCUSD_20241201
["timestamp","ask_amount","ask_price","bid_price","bid_amount"]
[1733047869716,0.11779164,97041.0,97040.0,0.14067577]
[1733047870187,0.11879164,97041.0,97040.0,0.14067577]
[1733047875065,0.11879164,97041.0,97040.0,0.55123581]
[1733047877266,0.11879164,97041.0,97040.0,0.14067577]
[1733047877485,0.11879164,97041.0,97040.0,0.55123581]
[1733047877931,0.11879164,97041.0,97040.0,0.49382434]
[1733047878139,0.11879164,97041.0,97040.0,0.08467577]
[1733047878348,0.11879164,97041.0,97040.0,0.00227577]
[1733047878553,0.12333301,97041.0,97040.0,0.00227577]
[1733047881541,0.12333301,97041.0,97040.0,0.28030899]
[1733047882154,0.12333301,97041.0,97040.0,0.00227577]
[1733047882811,0.11879164,97041.0,97040.0,0.40800899]
[1733047883477,0.11879164,97041.0,97040.0,0.12997577]
[1733047883909,0.11879164,97041.0,97040.0,0.40800899]
[1733047884576,0.11879164,97041.0,97040.0,0.12997577]
[1733047885019,0.11879164,97041.0,97040.0,0.40800899]
[1733047885229,0.11879164,97041.0,97040.0,0.12997577]
[1733047886383,0.11879164,97041.0,97040.0,0.40800899]
[1733047886756,0.11879164,97041.0,97040.0,0.12997577]
[1733047886987,0.12829164,97041.0,97040.0,0.12997577]
[1733047887238,0.12829164,97041.0,97040.0,0.40800899]
[1733047887446,0.12829164,97041.0,97040.0,0.4080343]
[1733047887760,0.12829164,97041.0,97040.0,0.12997577]
[1733047898534,0.12829164,97041.0,97040.0,0.08177577]
[1733047900062,0.12829164,97041.0,97040.0,0.00227577]
[1733047901572,0.12829164,97041.0,97040.0,0.0008643]
[1733047901797,0.12829164,97041.0,97040.0,0.00227577]
[1733047902593,0.12829164,97041.0,97040.0,0.28031619]
[1733047903867,0.12829164,97041.0,97040.0,0.00227577]
[1733047907154,0.12829164,97041.0,97040.0,0.07927577]
[1733047907748,0.12829164,97041.0,97040.0,0.12597577]
[1733047910687,0.12829164,97041.0,97040.0,0.00227577]
[1733047913099,0.12829164,97041.0,97040.0,0.2791323]
[1733047913326,0.12829164,97041.0,97040.0,0.0008643]
[1733047915192,0.12829164,97041.0,97040.0,0.00227577]
[1733047916264,0.12829164,97041.0,97040.0,0.0008643]
[1733047917666,0.12829164,97041.0,97040.0,0.00227577]
[1733047918509,0.12829164,97041.0,97040.0,0.0008643]
[1733047918709,0.12829164,97041.0,97040.0,0.00227577]
[1733047921996,0.12829164,97041.0,97040.0,0.28051535]
[1733047922203,0.12829164,97041.0,97040.0,0.00227577]
[1733047923093,0.12829164,97041.0,97040.0,0.28051535]
[1733047923322,0.12829164,97041.0,97040.0,0.00227577]
[1733047924480,0.12829164,97041.0,97040.0,0.0008643]
[1733047929115,0.12829164,97041.0,97040.0,0.00227577]
[1733047929491,0.12829164,97041.0,97040.0,0.0008643]
[1733047931260,0.12829164,97041.0,97040.0,0.00227577]
[1733047931682,0.12829164,97041.0,97040.0,0.0008643]
[1733047932341,0.12829164,97041.0,97040.0,0.00227577]
[1733047933625,0.12829164,97041.0,97040.0,0.0008643]
[1733047933835,0.12829164,97041.0,97040.0,0.00227577]
[1733047935007,0.12829164,97041.0,97040.0,0.04837577]
[1733047937080,0.12829164,97041.0,97040.0,0.32659025]
[1733047937282,0.12829164,97041.0,97040.0,0.04837577]
[1733047941790,0.12829164,97041.0,97040.0,0.32662637]
[1733047942242,0.12829164,97041.0,97040.0,0.04837577]
[1733047942497,0.12829164,97041.0,97040.0,0.12947577]
[1733047942721,0.12829164,97041.0,97040.0,0.40772637]
[1733047943396,0.12829164,97041.0,97040.0,0.12947577]
[1733047943886,0.12829164,97041.0,97040.0,0.40768699]
[1733047944326,0.12829164,97041.0,97040.0,0.12947577]
[1733047953177,0.12829164,97041.0,97040.0,0.54021639]
[1733047954380,0.12829164,97041.0,97040.0,0.12947577]
[1733047954846,0.12829164,97041.0,97040.0,0.54021639]
[1733047955347,0.12829164,97041.0,97040.0,0.12947577]
[1733047956158,0.12829164,97041.0,97040.0,0.54021639]
[1733047956407,0.12829164,97041.0,97040.0,0.12947577]
[1733047962019,0.12829164,97041.0,97040.0,0.12947577]
[1733047964699,0.12829164,97041.0,97040.0,0.08337577]
[1733047972100,0.12829164,97041.0,97040.0,0.0008643]
[1733047972366,0.12829164,97041.0,97040.0,0.28052775]
[1733047972566,0.12829164,97041.0,97040.0,0.00227577]
[1733047977106,0.12829164,97041.0,97040.0,0.0008643]
[1733047977305,0.12829164,97041.0,97040.0,0.00227577]
[1733047978942,0.15129164,97041.0,97040.0,0.00227577]
[1733047996877,0.12829164,97041.0,97040.0,0.00227577]
[1733047998991,0.12429164,97041.0,97040.0,0.00227577]
[1733048016320,0.12429164,97041.0,97040.0,0.28061119]
[1733048016544,0.12429164,97041.0,97040.0,0.00227577]
[1733048018352,0.12429164,97041.0,97040.0,0.28061119]
[1733048018943,0.12429164,97041.0,97040.0,0.28078223]
[1733048023471,0.12429164,97041.0,97040.0,0.27937076]
[1733048023688,0.29826704,97041.0,97040.0,0.0008643]
[1733048024317,0.29726704,97041.0,97040.0,0.0008643]
[1733048024538,0.30026704,97041.0,97040.0,0.0008643]
[1733048024967,0.29626704,97041.0,97040.0,0.0008643]
[1733048025175,0.29326704,97041.0,97040.0,0.0008643]
[1733048025390,0.30626704,97041.0,97040.0,0.0008643]
[1733048030914,0.4090985,97041.0,97040.0,0.0008643]
[1733048031170,3.25782224,97041.0,97040.0,3e-07]
[1733048031437,0.98994324,97041.0,97040.0,3e-07]
[1733048031648,0.98994324,97041.0,97035.0,0.00058565]
[1733048031649,0.379109,97036.0,97035.0,0.00058565]
[1733048031860,3.735226,97036.0,97035.0,0.00058565]
[1733048032071,3.80074125,97036.0,97035.0,0.00058565]
[1733048032289,3.61736992,97036.0,97035.0,0.00058565]
[1733048032495,3.15460129,97036.0,97035.0,0.00058565]
[1733048033136,3.16360129,97036.0,97035.0,0.00058565]
[1733048033387,3.15460129,97036.0,97035.0,0.00058565]
[1733048033596,3.16360129,97036.0,97035.0,0.00058565]
[1733048033801,3.06254529,97036.0,97035.0,0.00058565]
[1733048034015,3.06754529,97036.0,97035.0,0.00058565]
[1733048034234,3.52269003,97036.0,97035.0,0.00058565]
[1733048034655,3.50205203,97036.0,97035.0,0.00058565]
[1733048036804,3.25067503,97036.0,97035.0,0.00058565]
[1733048037031,2.77069803,97036.0,97035.0,0.00058565]
[1733048041826,2.77028839,97036.0,97035.0,0.00058565]
[1733048042033,2.66745693,97036.0,97035.0,0.00058565]
[1733048042684,2.66291556,97036.0,97035.0,0.00058565]
[1733048043146,2.56930156,97036.0,97035.0,0.00058565]
[1733048043799,2.52290156,97036.0,97035.0,0.00058565]
[1733048044003,2.49975156,97036.0,97035.0,0.00058565]
[1733048044588,2.29696656,97036.0,97035.0,0.00058565]
[1733048044794,2.13525956,97036.0,97035.0,0.00058565]
[1733048045050,1.88362856,97036.0,97035.0,0.00058565]
[1733048045284,0.95484856,97036.0,97035.0,0.00058565]
[1733048045506,1.95447156,97036.0,97035.0,0.00058565]
[1733048045728,0.95484856,97036.0,97035.0,0.00058565]
[1733048046314,2.16683156,97036.0,97035.0,0.00058565]
[1733048046691,1.88355556,97036.0,97035.0,0.00058565]
[1733048046960,1.75435756,97036.0,97035.0,0.00058565]
[1733048050098,1.68531456,97036.0,97035.0,0.00058565]
[1733048052391,1.68617866,97036.0,97035.0,0.00058565]
[1733048056908,1.78401012,97036.0,97035.0,0.00058565]
[1733048057125,1.79101012,97036.0,97035.0,0.00058565]
[1733048057339,1.78201012,97036.0,97035.0,0.00058565]
[1733048057551,1.77501012,97036.0,97035.0,0.00058565]
[1733048057764,1.78401012,97036.0,97035.0,0.00058565]
[1733048057983,1.78201012,97036.0,97035.0,0.00058565]
[1733048058199,1.68817866,97036.0,97035.0,0.00058565]
[1733048061312,0.95771266,97036.0,97035.0,0.00058565]
[1733048061723,2.99658066,97036.0,97035.0,0.00058565]
[1733048061954,0.95771266,97036.0,97035.0,0.00058565]
[1733048062188,2.99658066,97036.0,97035.0,0.00058565]
[1733048062398,1.06054412,97036.0,97035.0,0.00058565]
[1733048062598,3.09941212,97036.0,97035.0,0.00058565]
[1733048062747,1.06054412,97036.0,97035.0,0.00058565]
[1733048063155,3.09941212,97036.0,97035.0,0.00058565]
[1733048063359,3.24364166,97036.0,97035.0,0.00058565]
[1733048067945,3.06222466,97036.0,97035.0,0.00058565]
[1733048069120,2.47766866,97036.0,97035.0,0.00058565]
[1733048070468,2.45703066,97036.0,97035.0,0.00058565]
[1733048070676,2.34850166,97036.0,97035.0,0.00058565]
[1733048072610,2.30379966,97036.0,97035.0,0.00058565]
[1733048075768,0.95771266,97036.0,97035.0,0.00058565]
[1733048076814,2.67396466,97036.0,97035.0,0.00058565]
[1733048077025,2.36339066,97036.0,97035.0,0.00058565]
[1733048080367,2.27166666,97036.0,97035.0,0.00058565]
[1733048080583,2.25553266,97036.0,97035.0,0.00058565]
[1733048082178,2.11592366,97036.0,97035.0,0.00058565]
[1733048083091,2.09528666,97036.0,97035.0,0.00058565]
[1733048083571,1.58388766,97036.0,97035.0,0.00058565]
[1733048086088,1.23591566,97036.0,97035.0,0.08218565]
[1733048086967,1.07726866,97036.0,97035.0,0.08218565]
[1733048088319,0.95771266,97036.0,97035.0,0.08218565]
[1733048088542,0.85122392,97036.0,97035.0,0.08218565]
[1733048099271,1.84017092,97036.0,97035.0,0.08218565]
[1733048099510,1.89976092,97036.0,97035.0,0.08218565]
[1733048100166,2.00259238,97036.0,97035.0,0.08218565]
[1733048100404,2.00259238,97036.0,97035.0,0.00058565]
[1733048101271,1.89976092,97036.0,97035.0,0.00058565]
[1733048107682,1.77324692,97036.0,97035.0,0.00058565]
[1733048109315,1.77324692,97036.0,97035.0,6.5e-07]
[1733048109525,0.95771266,97036.0,97035.0,6.5e-07]
[1733048113367,0.15,97014.0,97012.0,0.19755779]
[1733048113622,0.15,97014.0,97007.0,0.0838645]
[1733048113623,0.15,97012.0,97007.0,0.0838645]
[1733048113809,1.90549621,97012.0,97007.0,0.0838645]
[1733048114017,1.90950752,97012.0,97007.0,0.0838645]
[1733048114440,2.01233898,97012.0,97007.0,0.0838645]
[1733048114856,2.01688035,97012.0,97007.0,0.0008645]
[1733048115061,2.01688035,97012.0,97011.0,0.00030452]
[1733048115271,2.01688035,97012.0,97007.0,0.0008645]
[1733048115272,0.15,97010.0,97007.0,3.9e-07]
[1733048115504,0.27584521,97008.0,97007.0,4.8e-07]
[1733048116144,0.28438845,97008.0,97007.0,4.8e-07]
[1733048116837,0.36228845,97008.0,97007.0,4.8e-07]
[1733048117056,0.37128845,97008.0,97007.0,4.8e-07]
[1733048117957,0.36228845,97008.0,97007.0,4.8e-07]
[1733048118171,0.47411991,97008.0,97007.0,4.8e-07]
[1733048118423,0.73953319,97008.0,97007.0,4.8e-07]
[1733048118629,0.73499182,97008.0,97007.0,4.8e-07]
[1733048118888,0.72099182,97008.0,97007.0,4.8e-07]
[1733048119600,0.71199182,97008.0,97007.0,4.8e-07]
[1733048120041,0.72999182,97008.0,97007.0,4.8e-07]
[1733048120942,0.72099182,97008.0,97007.0,4.8e-07]
[1733048121149,0.72999182,97008.0,97007.0,4.8e-07]
[1733048121395,0.72099182,97008.0,97007.0,4.8e-07]
[1733048121820,0.72099182,97008.0,97007.0,0.00172928]
[1733048122066,0.73085622,97008.0,97007.0,0.00172928]
[1733048122502,2.65216922,97008.0,97007.0,0.00172928]
[1733048123185,2.64316922,97008.0,97007.0,0.00172928]
[1733048123635,2.65216922,97008.0,97007.0,0.00172928]
[1733048124067,2.65671059,97008.0,97007.0,0.00172928]
[1733048124524,2.75954205,97008.0,97007.0,0.00172928]
[1733048124936,2.65671059,97008.0,97007.0,0.00172928]
[1733048125606,2.58106459,97008.0,97007.0,0.00172928]
[1733048125816,2.56486659,97008.0,97007.0,0.00172928]
[1733048128879,0.73539759,97008.0,97007.0,0.00172928]
[1733048129097,4.31371159,97008.0,97007.0,0.00172928]
[1733048129323,4.39403005,97008.0,97007.0,0.00172928]
[1733048129745,4.29119859,97008.0,97007.0,0.00143648]
[1733048129962,4.08702959,97008.0,97007.0,0.00143648]
[1733048131735,3.98303059,97008.0,97007.0,4.8e-07]
[1733048131957,0.75839759,97008.0,97007.0,4.8e-07]
[1733048133078,0.75943832,97008.0,97007.0,4.8e-07]
[1733048133568,0.85542008,97008.0,97007.0,4.8e-07]
[1733048137579,0.379185,97000.0,96999.0,8e-08]
[1733048137803,0.48600378,97000.0,96999.0,5.974e-05]
[1733048138028,0.49054515,97000.0,96999.0,5.974e-05]
[1733048138282,4.96547715,97000.0,96999.0,5.974e-05]
[1733048138499,4.77789174,97000.0,96999.0,5.974e-05]
[1733048138780,4.76618015,97000.0,96999.0,5.974e-05]
[1733048139232,4.76618015,97000.0,96987.0,0.0451]
[1733048139233,0.356211,96988.0,96987.0,0.04122424]
[1733048139461,2.78193321,96988.0,96987.0,0.04128378]
[1733048139697,0.46302396,96988.0,96987.0,0.04128378]
[1733048140155,2.78566696,96988.0,96987.0,0.04128378]
[1733048140399,0.46302396,96988.0,96987.0,0.04128378]
[1733048140622,2.77953396,96988.0,96987.0,0.04128378]
[1733048140885,2.79566696,96988.0,96987.0,0.04128378]
[1733048141115,2.77953396,96988.0,96987.0,0.04128378]
[1733048141386,2.75293396,96988.0,96987.0,0.04128378]
[1733048142030,2.69334396,96988.0,96987.0,0.04128378]
[1733048142254,2.68169696,96988.0,96987.0,0.04128378]
[1733048142466,2.68769696,96988.0,96987.0,0.04128378]
[1733048142690,1.92216542,96988.0,96987.0,0.04128378]
[1733048142910,0.93639796,96988.0,96987.0,0.04128378]
[1733048143336,0.93639796,96988.0,96987.0,5.954e-05]
[1733048143809,0.94093933,96988.0,96987.0,5.954e-05]
[1733048144453,0.93193933,96988.0,96987.0,5.954e-05]
[1733048144909,0.94093933,96988.0,96987.0,0.00178774]
[1733048145146,1.04377079,96988.0,96987.0,0.00178774]
[1733048145587,1.03777079,96988.0,96987.0,0.00178774]
[1733048146026,1.04477079,96988.0,96987.0,0.00178774]
[1733048150260,1.04477079,96988.0,96987.0,7.4e-07]
[1733048150261,1.44717079,96988.0,96987.0,7.4e-07]
[1733048150503,0.90689679,96988.0,96987.0,7.4e-07]
[1733048151627,0.80406533,96988.0,96987.0,7.4e-07]
[1733048152664,0.75656533,96988.0,96987.0,7.4e-07]
[1733048154418,1.21171007,96988.0,96987.0,7.4e-07]
[1733048157754,0.023,96986.0,96980.0,0.0008642]
[1733048158005,0.45907021,96981.0,96980.0,0.0475642]
[1733048158402,0.46351378,96981.0,96980.0,0.0475642]
[1733048159003,1.85254578,96981.0,96980.0,0.0475642]
[1733048159318,1.75348478,96981.0,96980.0,0.0475642]
[1733048159522,0.79610378,96981.0,96980.0,0.1292642]
[1733048159725,0.60879578,96981.0,96980.0,0.1292642]
[1733048160128,0.61379578,96981.0,96980.0,0.1292642]
[1733048165848,0.71662724,96981.0,96980.0,0.1292642]
[1733048166263,0.61379578,96981.0,96980.0,0.1292642]
[1733048166475,0.61379578,96981.0,96980.0,0.0008642]
[1733048171303,0.47751378,96981.0,96980.0,0.0008642]
[1733048171994,2.65930478,96981.0,96980.0,0.0008642]
[1733048177155,2.03560978,96981.0,96980.0,0.0008642]
[1733048177383,2.13844124,96981.0,96980.0,0.0008642]
[1733048178546,2.59358598,96981.0,96980.0,0.0008642]
[1733048182275,2.49075452,96981.0,96980.0,0.0008642]
[1733048183856,2.48575452,96981.0,96980.0,0.0008642]
[1733048184290,0.92765852,96981.0,96980.0,0.0008642]
[1733048184507,0.206245,96972.0,96970.0,0.0475002]
[1733048184751,0.25284521,96971.0,96970.0,0.0475002]
[1733048184966,0.25727031,96971.0,96970.0,0.0475002]
[1733048186116,0.26327031,96971.0,96970.0,0.0475002]
[1733048188092,0.27227031,96971.0,96970.0,0.0475002]
[1733048191822,0.27227031,96971.0,96970.0,0.0483645]
[1733048194056,0.27227031,96971.0,96970.0,0.0969645]
[1733048196288,0.25727031,96971.0,96970.0,0.0969645]
[1733048196720,0.26627031,96971.0,96970.0,0.0969645]
[1733048196937,0.26327031,96971.0,96970.0,0.0969645]
[1733048197171,0.27227031,96971.0,96970.0,0.0969645]
[1733048198081,0.26627031,96971.0,96970.0,0.0969645]
[1733048198573,0.33814614,96971.0,96970.0,0.0969645]
[1733048198792,0.27481168,96971.0,96970.0,0.0969645]
[1733048199481,0.26181168,96971.0,96970.0,0.0969645]
[1733048199958,0.27581168,96971.0,96970.0,0.0969645]
[1733048200244,0.26681168,96971.0,96970.0,0.0969645]
[1733048200460,0.27581168,96971.0,96970.0,0.0969645]
[1733048200924,0.26681168,96971.0,96970.0,0.0969645]
[1733048201140,0.26181168,96971.0,96970.0,0.0969645]
[1733048201375,0.27081168,96971.0,96970.0,0.0969645]
[1733048201589,0.27681168,96971.0,96970.0,0.0969645]
[1733048202449,0.27081168,96971.0,96970.0,0.0969645]
[1733048202773,0.27581168,96971.0,96970.0,0.0969645]
[1733048204521,0.27754068,96971.0,96970.0,0.0969645]
[1733048205530,0.34654355,96971.0,96970.0,0.0969645]
[1733048206519,0.34654355,96971.0,96970.0,0.0483645]
[1733048207562,0.34654355,96971.0,96970.0,0.0008643]
[1733048207783,0.27754068,96971.0,96970.0,0.0008643]
[1733048208012,0.27299931,96971.0,96970.0,0.0008643]
[1733048212279,0.28915051,96971.0,96970.0,0.1328643]
[1733048213190,0.27299931,96971.0,96970.0,0.1328643]
[1733048217392,0.27299931,96971.0,96970.0,0.0008643]
[1733048217600,0.34154804,96971.0,96970.0,0.0008643]
[1733048218234,0.27299931,96971.0,96970.0,0.0008643]
[1733048235654,0.15,96969.0,96965.0,0.00859288]
[1733048235861,0.10284521,96966.0,96965.0,0.00859288]
[1733048236074,0.25284521,96966.0,96965.0,0.00859288]
[1733048236291,0.2572642,96966.0,96965.0,0.00859288]
[1733048237454,0.2572642,96966.0,96965.0,0.00755553]
[1733048238108,0.2662642,96966.0,96965.0,0.00755553]
[1733048238609,0.206259,96965.0,96964.0,0.13019547]
[1733048238858,0.46352262,96965.0,96964.0,0.13019547]
[1733048240479,0.47252262,96965.0,96964.0,0.13019547]
[1733048240707,0.47752262,96965.0,96964.0,0.13019547]
[1733048245370,0.47697722,96965.0,96964.0,0.13019547]
[1733048252694,0.47697722,96965.0,96964.0,0.13105997]
[1733048255962,0.47697722,96965.0,96964.0,0.08195997]
[1733048257090,0.47697722,96965.0,96964.0,0.0008645]
[1733048257348,0.49623958,96965.0,96964.0,0.0008645]
[1733048257571,0.47697722,96965.0,96964.0,0.0008645]
[1733048258522,0.48268527,96965.0,96964.0,0.0008645]
[1733048259674,1.48412827,96965.0,96964.0,0.0008645]
[1733048259894,4.34366327,96965.0,96964.0,0.0008645]
[1733048260109,4.52005773,96965.0,96964.0,0.0008645]
[1733048260329,4.40379473,96965.0,96964.0,0.0008645]
[1733048260546,4.40079473,96965.0,96964.0,0.0008645]
[1733048260766,4.40979473,96965.0,96964.0,0.0008645]
[1733048260988,4.40379473,96965.0,96964.0,0.0008645]
[1733048261237,4.39479473,96965.0,96964.0,0.0008645]
[1733048261473,4.30096327,96965.0,96964.0,0.0008645]
[1733048261701,4.30796327,96965.0,96964.0,0.0008645]
[1733048261918,4.38416327,96965.0,96964.0,5e-07]
[1733048262152,0.15,96963.0,96962.0,7e-07]
[1733048262400,0.45910921,96963.0,96962.0,7e-07]
[1733048262654,0.57071944,96963.0,96962.0,7e-07]
[1733048262896,0.61921944,96963.0,96962.0,7e-07]
[1733048263677,0.5454291,96963.0,96962.0,7e-07]
[1733048264345,0.5544291,96963.0,96962.0,7e-07]
[1733048264790,0.5939291,96963.0,96962.0,7e-07]
[1733048264998,0.6029291,96963.0,96962.0,7e-07]
[1733048265650,1.08107384,96963.0,96962.0,7e-07]
[1733048265829,1.1839053,96963.0,96962.0,7e-07]
[1733048266306,1.08107384,96963.0,96962.0,7e-07]
[1733048266545,1.07207384,96963.0,96962.0,7e-07]
[1733048266770,1.08107384,96963.0,96962.0,7e-07]
[1733048267215,1.07207384,96963.0,96962.0,7e-07]
[1733048267659,1.08107384,96963.0,96962.0,7e-07]
[1733048267879,0.81142374,96956.0,96955.0,2e-07]
[1733048268086,0.91426895,96956.0,96955.0,2e-07]
[1733048268301,0.96276895,96956.0,96955.0,2e-07]
[1733048268513,0.96715528,96956.0,96955.0,2e-07]
[1733048268727,1.06998674,96956.0,96955.0,2e-07]
[1733048269125,1.07009722,96956.0,96955.0,2e-07]
[1733048269836,1.07909722,96956.0,96955.0,2e-07]
[1733048271383,0.92776576,96956.0,96955.0,2e-07]
[1733048273280,0.356296,96948.0,96947.0,0.0585857]
[1733048273501,2.79274521,96948.0,96947.0,0.0585857]
[1733048273726,0.47967716,96948.0,96947.0,0.0585857]
[1733048273953,2.79471216,96948.0,96947.0,0.0585857]
[1733048274141,0.47967716,96948.0,96947.0,0.0585857]
[1733048274410,2.50030816,96948.0,96947.0,0.0585857]
[1733048274635,2.50730816,96948.0,96947.0,0.0585857]
[1733048275525,2.27120816,96948.0,96947.0,0.0585857]
[1733048276346,2.25050716,96948.0,96947.0,0.0585857]
[1733048276820,2.26606588,96948.0,96947.0,0.0585857]
[1733048278069,2.25050716,96948.0,96947.0,0.0585857]
[1733048278511,1.26642016,96948.0,96947.0,0.0585857]
[1733048278734,0.74460316,96948.0,96947.0,0.0585857]
[1733048278957,0.74449981,96948.0,96947.0,0.0585857]
[1733048279168,0.72834459,96948.0,96947.0,0.0585857]
[1733048280512,0.69284059,96948.0,96947.0,0.0585857]
[1733048280731,0.61643259,96948.0,96947.0,0.1053857]
[1733048282113,0.11422594,96948.0,96947.0,0.1053857]
[1733048282335,0.11422594,96948.0,96947.0,0.1153857]
[1733048282983,0.10722594,96948.0,96947.0,0.1153857]
[1733048283389,0.11422594,96948.0,96947.0,0.1153857]
[1733048283817,0.10722594,96948.0,96947.0,0.1153857]
[1733048284033,0.10822594,96948.0,96947.0,0.1153857]
[1733048285546,0.10722594,96948.0,96947.0,0.1153857]
[1733048285975,0.10822594,96948.0,96947.0,0.1153857]
[1733048287304,0.10822594,96948.0,96947.0,0.1162503]
[1733048289948,0.10722594,96948.0,96947.0,0.1162503]
[1733048290162,0.10822594,96948.0,96947.0,0.1162503]
[1733048299055,0.10995414,96948.0,96947.0,0.1162503]
[1733048305319,0.11107168,96948.0,96947.0,0.1162503]
[1733048314335,0.11107168,96948.0,96947.0,0.0108646]
[1733048316986,0.11107168,96948.0,96947.0,0.0566646]
[1733048319585,0.11107168,96948.0,96947.0,0.1337646]
[1733048322984,0.11107168,96948.0,96947.0,0.1337646]
[1733048325641,0.11107168,96948.0,96947.0,0.13559015]
[1733048326093,0.00822647,96948.0,96947.0,0.13559015]
[1733048326569,0.0027282,96948.0,96947.0,0.13559015]
[1733048326776,0.00814886,96948.0,96947.0,0.13559015]
[1733048327008,0.0027282,96948.0,96947.0,0.13559015]
[1733048327277,0.00814886,96948.0,96947.0,0.13559015]
[1733048327482,0.0027282,96948.0,96947.0,0.13559015]
[1733048327690,0.00814886,96948.0,96947.0,0.13559015]
[1733048327877,0.0027282,96948.0,96947.0,0.13559015]
[1733048328133,0.00814886,96948.0,96947.0,0.13559015]
[1733048328320,0.0027282,96948.0,96947.0,0.13559015]
[1733048328578,0.00814886,96948.0,96947.0,0.13559015]
[1733048347281,0.0027282,96948.0,96947.0,0.13559015]
[1733048350607,0.0027282,96948.0,96947.0,0.14559015]
[1733048351073,0.0027282,96948.0,96947.0,0.45890957]
[1733048351294,0.0027282,96948.0,96947.0,0.45708402]
[1733048351518,0.00011048,96956.0,96955.0,0.226281]
[1733048351757,0.00011048,96956.0,96955.0,0.353781]
[1733048354055,0.00011048,96956.0,96955.0,0.355781]
[1733048357825,0.00183868,96956.0,96955.0,0.355781]
[1733048394451,0.00183868,96956.0,96955.0,0.66843917]
[1733048395569,0.00183868,96956.0,96955.0,0.355781]
[1733048401560,0.001729,96965.0,96961.0,0.206266]
[1733048401771,0.001729,96965.0,96962.0,0.00182509]
[1733048401956,0.001729,96965.0,96962.0,0.01182509]
[1733048402202,0.001729,96965.0,96962.0,0.05982509]
[1733048403287,0.001729,96965.0,96962.0,0.14182509]
[1733048404746,0.001729,96965.0,96962.0,0.14282509]
[1733048412626,0.001729,96965.0,96962.0,0.45618628]
[1733048412808,0.001729,96965.0,96962.0,0.141]
[1733048413029,0.001729,96965.0,96962.0,0.142825]
[1733048413872,0.001729,96965.0,96962.0,0.45619519]
[1733048414050,0.001729,96965.0,96962.0,0.4543704]
[1733048414285,0.001729,96965.0,96962.0,0.141]
[1733048414495,0.001729,96965.0,96962.0,0.152825]
[1733048415465,0.001729,96965.0,96962.0,0.151825]
[1733048415698,0.001729,96965.0,96962.0,0.19406155]
[1733048415921,0.001729,96965.0,96962.0,0.19506155]
[1733048416343,0.001729,96965.0,96962.0,0.19406155]
[1733048416557,0.001729,96971.0,96970.0,0.271849]
[1733048416761,0.001729,96971.0,96970.0,0.58509559]
[1733048416966,0.001729,96971.0,96970.0,0.271849]
[1733048417382,0.001729,96971.0,96970.0,0.58502644]
[1733048417755,0.001729,96971.0,96970.0,0.271849]
[1733048418403,0.001729,96971.0,96970.0,0.274849]
[1733048418822,0.001729,96971.0,96970.0,0.670195]
[1733048419036,0.001729,96971.0,96970.0,0.357049]
[1733048419886,0.001729,96971.0,96970.0,0.670195]
[1733048420094,0.001729,96971.0,96970.0,0.357049]
[1733048435556,0.001729,96971.0,96970.0,0.0686]
[1733048435776,0.001729,96971.0,96970.0,0.07042494]
[1733048436262,0.00694133,96971.0,96970.0,0.07042494]
[1733048436478,0.001729,96971.0,96970.0,0.07042494]
[1733048458071,0.001729,96971.0,96970.0,0.06042494]
[1733048458260,0.001729,96971.0,96970.0,0.07042494]
[1733048462746,0.001729,96971.0,96970.0,0.06547494]
[1733048465159,0.001729,96971.0,96970.0,0.06547494]
[1733048466291,0.051229,96971.0,96970.0,0.00805]
[1733048466734,0.0564207,96971.0,96970.0,0.00805]
[1733048473819,0.0564207,96971.0,96970.0,0.0089141]
[1733048474254,0.0069207,96971.0,96970.0,0.0089141]
[1733048476383,0.0069207,96971.0,96970.0,0.0059141]
[1733048476597,0.0079207,96971.0,96970.0,0.0059141]
[1733048476957,0.0069207,96971.0,96970.0,0.0059141]
[1733048490011,0.0089207,96971.0,96970.0,0.0059141]
[1733048490534,0.0069207,96971.0,96970.0,0.0059141]
[1733048490748,0.0069207,96971.0,96970.0,0.0533141]
[1733048490966,0.0069207,96971.0,96970.0,0.0543141]
[1733048491144,0.001729,96971.0,96970.0,0.0543141]
[1733048491355,0.001729,96971.0,96970.0,0.0533141]
[1733048491876,0.001729,96971.0,96970.0,0.05513914]
[1733048494309,0.001729,96971.0,96970.0,0.13313914]
[1733048504877,0.001729,96971.0,96970.0,0.13313914]
[1733048522666,0.001729,96971.0,96970.0,0.14345844]
[1733048523418,0.001729,96971.0,96970.0,0.13213914]
[1733048523627,0.001729,96971.0,96970.0,0.13513914]
[1733048544715,0.0017286,96987.0,96986.0,0.211265]
[1733048544930,0.0017286,96987.0,96986.0,0.33518967]
[1733048545129,0.0017286,96987.0,96986.0,0.333365]
[1733048546006,0.00186411,96987.0,96986.0,0.333365]
[1733048547049,0.00186411,96987.0,96986.0,0.343365]
[1733048547539,0.00186411,96987.0,96986.0,0.355365]
[1733048547986,0.00186411,96987.0,96986.0,0.378365]
[1733048548193,0.00186411,96987.0,96986.0,0.48121021]
[1733048548638,0.00186411,96987.0,96986.0,0.47921021]
[1733048549077,0.00186411,96987.0,96986.0,0.48021021]
[1733048549467,0.00186411,96987.0,96986.0,0.47921021]
[1733048551432,0.00286411,96987.0,96986.0,0.48621021]
[1733048554345,0.00286411,96987.0,96986.0,0.48580184]
[1733048558369,0.00286411,96987.0,96986.0,0.79794577]
[1733048558833,0.00286411,96987.0,96986.0,0.48580184]
[1733048561131,0.00286411,96987.0,96986.0,0.79791613]
[1733048561546,0.00286411,96987.0,96986.0,0.48580184]
[1733048562060,0.00286411,96987.0,96986.0,0.79788321]
[1733048562568,0.00286411,96987.0,96986.0,0.48580184]
[1733048563927,0.0008644,97008.0,97007.0,0.00464163]
[1733048564155,0.0009241,97008.0,97007.0,0.00464163]
[1733048564391,0.00562139,97008.0,97007.0,0.00464163]
[1733048564608,0.0009241,97008.0,97007.0,0.00464163]
[1733048565427,0.0009241,97008.0,97007.0,0.00564163]
[1733048568953,0.00562139,97008.0,97007.0,0.00564163]
[1733048569204,0.0009241,97008.0,97007.0,0.00564163]
[1733048569417,0.00562139,97008.0,97007.0,0.00564163]
[1733048569640,0.0009241,97008.0,97007.0,0.00564163]
[1733048570102,0.00562139,97008.0,97007.0,0.00564163]
[1733048570321,0.0009241,97008.0,97007.0,0.00564163]
[1733048570533,0.00562139,97008.0,97007.0,0.00564163]
[1733048570745,0.0009241,97008.0,97007.0,0.00564163]
[1733048570965,0.00562139,97008.0,97007.0,0.00564163]
[1733048571181,0.0009241,97008.0,97007.0,0.00564163]
[1733048571436,0.00562139,97008.0,97007.0,0.00564163]
[1733048577625,0.13292139,97008.0,97007.0,0.00564163]
[1733048579097,0.13292139,97008.0,97007.0,0.00464163]
[1733048581594,0.13292139,97008.0,96996.0,0.40960801]
[1733048581595,0.333491,96997.0,96996.0,0.40960801]
[1733048581613,0.333491,96997.0,96996.0,0.00464163]
[1733048582045,0.33817995,96997.0,96996.0,0.00464163]
[1733048584424,0.33917995,96997.0,96996.0,0.00464163]
[1733048594492,0.21187995,96997.0,96996.0,0.00464163]
[1733048595940,0.00568895,96997.0,96996.0,0.00464163]